Cogmind - Beta 10.2 @@@ ROGUE MODE // 2021.12.08 @ 02:28:02 // Winter2019/RPGLIKE Player: FontPeg Result: Self-destructed Performance ------------- Evolutions (1) 500 Regions Visited (3) 600 Robots Destroyed (15) 75 Value Destroyed (362) 362 Prototype IDs (0) 0 Alien Tech Used (0) 0 Bonus (0) 0 TOTAL SCORE: 1537 Bonus ------- None Cogmind --------- Core Integrity 58/600 Matter 300/300 Energy 99/100 System Corruption 0% Temperature Cool (1) Movement Flying (40) Location -9/Materials Parts ------- > --- POWER (1) -------- (None) > --- PROPULSION (2) --- Flight Unit > --- UTILITY (2) ------ Weight Redist. System Signal Interpreter > --- WEAPON (2) ------- Plasma Flamer Mining Claw > --- INVENTORY (1) ---- Hacking Suite Peak State ------------ > --- POWER ------------ (None) > --- PROPULSION ------- Flight Unit > --- UTILITY ---------- Weight Redist. System Signal Interpreter > --- WEAPON ----------- Plasma Flamer Mining Claw > --- INVENTORY -------- Hacking Suite [Rating: 10] Favorites ----------- Power Ion Engine Engine Ion Engine Propulsion Flight Unit Flight Unit Flight Unit Utility Signal Interpreter Device Weight Redist. System Processor Signal Interpreter Weapon Mining Claw Energy Gun Small Laser Special Weapon Plasma Flamer Slashing Weapon Mining Claw Build | -11 -10 -10 -9 ------- Run | Scr Mat Min Mat Slots Evolved 3 | 3 . . . Power . | . . . . Propulsion 1 | 1 . . . Utility 1 | 1 . . . Weapon 1 | 1 . . . Parts Attached 11 | 3 6 2 . Power 2 | 1 1 . . Engine 2 | 1 1 . . Core . | . . . . Reactor . | . . . . Propulsion 1 | . . 1 . Treads . | . . . . Leg . | . . . . Wheel . | . . . . Hover . | . . . . Flight 1 | . . 1 . Utility 3 | . 3 . . Device 1 | . 1 . . Storage . | . . . . Processor 2 | . 2 . . Hackware . | . . . . Protection . | . . . . Artifact . | . . . . Weapon 5 | 2 2 1 . Energy Gun 3 | 2 1 . . Energy Cannon . | . . . . Ballistic Gun . | . . . . Ballistic Cannon . | . . . . Launcher . | . . . . Special Weapon 1 | . . 1 . Impact Weapon . | . . . . Slashing Weapon 1 | . 1 . . Piercing Weapon . | . . . . Special Melee Weapon . | . . . . Unidentified Prototypes . | . . . . Parts Lost 2 | . 2 . . Power 1 | . 1 . . Propulsion . | . . . . Utility . | . . . . Weapon 1 | . 1 . . Highest Loss Streak 1 | . 1 . . Average Slot Usage (%) 55 | . 47 63 71 Engine 5 | . 10 . . Flight 3 | . . 6 14 Device 7 | . . 14 14 Processor 14 | . 14 14 14 Energy Gun 4 | . 6 1 . Special Weapon 6 | . . 12 14 Slashing Weapon 13 | . 13 14 14 Naked Turns . | . . . . Heaviest Build 8 | 6 8 5 5 Greatest Support 15 | 8 14 15 15 Greatest Overweight (x) . | . . . . Average Overweight (x) . | . . . . Largest Inventory Capacity 1 | 1 1 1 1 Average Capacity . | . 1 1 1 Most Carried 1 | 1 1 1 1 Average Carried . | . . 1 1 Final Capacity 1 | 1 1 1 1 Final Carried 1 | 1 1 1 1 Class Distribution -------------------- 100% | Mutant Dominant Class ---------------- Mutant | -10/Materials Mutant | -10/Mines Mutant | -9/Materials Resources | -11 -10 -10 -9 ----------- Run | Scr Mat Min Mat Matter Collected 305 | 176 109 20 . Remotely . | . . . . Salvage Created 425 | . 413 12 . Parts 21 | . 20 1 . Haulers Intercepted 1 | . 1 . . Recyclers Shooed . | . . . . Parts Field Recycled . | . . . . Retrieved Matter . | . . . . Parts Self-Destructed . | . . . . Prevented . | . . . . Kills | -11 -10 -10 -9 ------- Run | Scr Mat Min Mat Combat Hostiles Destroyed 12 | . 10 2 . Melee 10 | . 10 . . Cannons 2 | . . 2 . Classes Destroyed 5 | . 5 . . Hauler 1 | . 1 . . Recycler 1 | . 1 . . Operator 1 | . 1 . . Swarmer 4 | . 3 1 . Grunt 8 | . 7 1 . Best Kill Streak 3 | . 3 1 . Combat Bots Only 3 | . 3 1 . Max Kills in Single Turn 1 | . 1 1 . Gunslinging . | . . . . Exploded . | . . . . Melee 1 | . 1 . . Uniques/NPCs Destroyed . | . . . . Combat | -11 -10 -10 -9 -------- Run | Scr Mat Min Mat Damage Taken 1248 | . 988 260 . Core 1079 | . 858 221 . Absorbed by Shields . | . . . . Redirected to Core 530 | . 397 133 . Core Remaining (%) 54 | 100 . 9 . Volleys Fired 13 | . . 13 . Largest 1 | . . 1 . Hottest 100 | . . 100 . Shots Fired 13 | . . 13 . Gun . | . . . . Cannon . | . . . . Launcher . | . . . . Special 13 | . . 13 . Kinetic . | . . . . Thermal 13 | . . 13 . Explosive . | . . . . Electromagnetic . | . . . . Robot Hit Streak 5 | . . 5 . Robot Miss Streak 2 | . . 2 . Penetration Max . | . . . . Secondary Targets . | . . . . Shots Hit Robots 47 | . 38 9 . Core Hits 20 | . 15 5 . Critical Hits . | . . . . Critical Kills . | . . . . Critical Parts Destroyed . | . . . . Melee Attacks 54 | . 54 . . Impact . | . . . . Slashing 54 | . 54 . . Piercing . | . . . . Sneak Attacks 3 | . 3 . . Combat Hostiles . | . . . . Follow-up Attacks . | . . . . Damage Inflicted 1124 | . 967 157 . Guns . | . . . . Cannons . | . . . . Explosions . | . . . . Melee 967 | . 967 . . Ramming . | . . . . Kinetic . | . . . . Thermal 157 | . . 157 . Explosive . | . . . . Electromagnetic . | . . . . Impact . | . . . . Slashing 967 | . 967 . . Piercing . | . . . . Highest Corruption . | . . . . Average Corruption . | . . . . Corruption Purged . | . . . . Overload Shots . | . . . . Overflow Damage . | . . . . Projectiles . | . . . . Explosions . | . . . . Melee . | . . . . Knockbacks . | . . . . Impact . | . . . . Kinetic . | . . . . Secondary . | . . . . Self-Inflicted Damage . | . . . . Shots . | . . . . Rammed . | . . . . Targets Rammed . | . . . . Kicked . | . . . . Crushed . | . . . . Highest Temperature 219 | . . 219 . Average Temperature 80 | . . 80 . Received Heat Transfer 676 | . 492 184 . Siege Activations . | . . . . Robots Corrupted . | . . . . Combat Hostiles . | . . . . Parts Fried . | . . . . Impact Corruptions . | . . . . Robots Melted . | . . . . Combat Hostiles . | . . . . Parts Melted . | . . . . Heat Transferred 960 | . . 960 . Parts Sabotaged . | . . . . Parts Stolen . | . . . . Parts Stripped . | . . . . Power Chain Reactions . | . . . . Missiles Intercepted . | . . . . Alert | -11 -10 -10 -9 ------- Run | Scr Mat Min Mat Peak Influence 334 | . 334 190 74 Initial 130 | . . 130 74 Average 161 | . 180 157 74 Maximum Alert Level 1 | . 1 . . Low Security (%) 78 | 100 52 100 100 Level 1 21 | . 47 . . Level 2 . | . . . . Level 3 . | . . . . Level 4 . | . . . . Level 5 . | . . . . High Security . | . . . . Max Security . | . . . . Squads Dispatched 1 | . 1 . . Investigation . | . . . . Extermination . | . . . . Reinforcement 1 | . 1 . . Assault . | . . . . Garrison . | . . . . Intercept . | . . . . Construction Impeded . | . . . . Haulers Reinforced . | . . . . Stealth | -11 -10 -10 -9 --------- Run | Scr Mat Min Mat Distress Signals 5 | . 3 2 . Communications Jammed . | . . . . Distress Signals . | . . . . Times Spotted 53 | . 18 35 . Peak Tracking Total 20 | . 7 20 . Tactical Retreats 9 | . 1 8 . Traps | -11 -10 -10 -9 ------- Run | Scr Mat Min Mat Traps Triggered . | . . . . Indirectly . | . . . . Trap Hack Attempts . | . . . . Triggered . | . . . . Disarmed . | . . . . Reprogrammed . | . . . . Reused . | . . . . Traps Extracted . | . . . . Installed . | . . . . Triggered . | . . . . Machines | -11 -10 -10 -9 ---------- Run | Scr Mat Min Mat Machines Disabled . | . . . . Max in Single Turn . | . . . . Machines Sabotaged . | . . . . Garrisons Compromised . | . . . . Overloaded Fab Kills . | . . . . Fab Network Shutdowns . | . . . . Hacking | -11 -10 -10 -9 --------- Run | Scr Mat Min Mat Machines Accessed 1 | . 1 . . Terminals 1 | . 1 . . Fabricators . | . . . . Repair Stations . | . . . . Recycling Units . | . . . . Scanalyzers . | . . . . Garrison Access . | . . . . Total Hacks 3 | . 3 . . Successful 2 | . 2 . . Failed 1 | . 1 . . Catastrophic . | . . . . Database Lockouts . | . . . . Manual 3 | . 3 . . Terminals 3 | . 3 . . Fabricators . | . . . . Repair Stations . | . . . . Recycling Units . | . . . . Scanalyzers . | . . . . Garrison Access . | . . . . Terminal Hacks 1 | . 1 . . Branch Access Points 1 | . 1 . . Fabricator Hacks . | . . . . Repair Station Hacks . | . . . . Recycling Unit Hacks . | . . . . Scanalyzer . | . . . . Garrison Access Hacks . | . . . . Unauthorized Hacks 1 | . 1 . . Terminals 1 | . 1 . . Botnet 1 | . 1 . . Fabricators . | . . . . Repair Stations . | . . . . Recycling Units . | . . . . Scanalyzers . | . . . . Garrison Access . | . . . . Data Cores Recovered . | . . . . Used . | . . . . Hacking Detections 1 | . 1 . . Full Trace Events . | . . . . Feedback Events . | . . . . Feedback Blocked . | . . . . Robot Schematics Acquired . | . . . . Robots Built . | . . . . Matter . | . . . . Time . | . . . . Total Robot Build Rating . | . . . . Part Schematics Acquired . | . . . . Parts Built . | . . . . Matter . | . . . . Time . | . . . . Total Part Build Rating . | . . . . Parts Repaired . | . . . . Time . | . . . . Parts Recycled . | . . . . Recycled Matter . | . . . . Retrieved Matter . | . . . . Retrieved Components . | . . . . Parts Scanalyzed . | . . . . Part Schematics Acquired . | . . . . Parts Damaged . | . . . . Bothacking | -11 -10 -10 -9 ------------ Run | Scr Mat Min Mat Used RIF Installer . | . . . . Robots Hacked . | . . . . Non-combat . | . . . . Combat . | . . . . Robot Hacks Applied . | . . . . Relay Couplers Released . | . . . . Robots Rewired 1 | . . 1 . Allies Hacked . | . . . . Hacks Repelled . | . . . . Allies | -11 -10 -10 -9 -------- Run | Scr Mat Min Mat Total Allies 1 | . . 1 . Largest Group 1 | . . 1 . Highest-Rated Group 16 | . . 16 . Highest-Rated Ally 16 | . . 16 . Total Orders . | . . . . Ally Attacks 3 | . . 3 . Total Damage 28 | . . 28 . Kills . | . . . . Allies Corrupted . | . . . . Allies Melted 1 | . . 1 . Intel | -11 -10 -10 -9 ------- Run | Scr Mat Min Mat Robot Analysis Total . | . . . . Derelict Logs Recovered 1 | . . 1 . Drone Launches . | . . . . Drone Recoveries . | . . . . Exploration | -11 -10 -10 -9 ------------- Run | Scr Mat Min Mat Turns Passed 681 | 27 312 338 4 Spaces Moved 789 | 42 184 554 9 Core 534 | 42 184 308 . Treads . | . . . . Legs . | . . . . Wheels . | . . . . Hover . | . . . . Flight 255 | . . 246 9 Fastest Speed 40 | 50 50 40 40 Average Speed 46 | 50 50 45 40 Slowest Speed 50 | 50 50 50 40 Overloaded Moves . | . . . . Propulsion Burnouts . | . . . . Robots Hopped 1 | . . 1 . Cave-ins Triggered . | . . . . Exploration Rate (%) 30 | 4 25 91 3 Regions Visited 3 Branch Regions 1 Pre-discovered Areas 1 | . . 1 . Known Exits Taken 2 | . 1 1 . Unknown Exits Taken 1 | 1 . . . Scrap Searched 1 | . . 1 . Spaces Dug . | . . . . Terrain Destroyed . | . . . . Melee . | . . . . Projectile . | . . . . AOE . | . . . . Terrain Rammed . | . . . . Walls Destroyed . | . . . . Machines Disabled . | . . . . Actions | -11 -10 -10 -9 --------- Run | Scr Mat Min Mat Total 965 | 46 293 617 9 Wait 59 | . 23 36 . Move 784 | 41 183 551 9 Hop 1 | . . 1 . Pick Up 4 | 2 2 . . Fast Attach 7 | 2 3 2 . Attach 2 | 1 1 . . Detach . | . . . . Swap 2 | . 2 . . Drop 3 | . 2 1 . Fire 13 | . . 13 . Melee 54 | . 54 . . Ram . | . . . . Kick . | . . . . Crush . | . . . . Escape Stasis . | . . . . Rewire 11 | . . 11 . Trap . | . . . . Miscellaneous 25 | . 23 2 . Route ------- -11/Scrapyard -10/Materials -10/Mines (discovered 2 exits: *Mat x2) -9/Materials History --------- Turn | Location | Event 1 | -11/Scrapyard | Upgraded with Propulsion slot (x1) 1 | -11/Scrapyard | Upgraded with Utility slot (x1) 1 | -11/Scrapyard | Upgraded with Weapon slot (x1) 3 | -11/Scrapyard | Discovered new exit (range 16) 28 | -11/Scrapyard | Entered Materials 41 | -10/Materials | Identified exit to Mines 149 | -10/Materials | Core integrity fell below 50% 165 | -10/Materials | Core integrity fell below 20% 316 | -10/Materials | Build established: Mutant 340 | -10/Materials | Entered Mines 342 | -10/Mines | Reached level 2 373 | -10/Mines | Met a Derelict bent on vengeance 380 | -10/Mines | A weapon hastily lodged in a ceiling crevice suddenly fell to the ground 390 | -10/Mines | Assembled infested the area 395 | -10/Mines | Assisted by a Guerilla fighting off Assembled 403 | -10/Mines | Discovered new exit (range 12) 408 | -10/Mines | Identified exit to Materials 607 | -10/Mines | Found a hidden stash of uninstalled traps 675 | -10/Mines | Discovered exit to Materials (range 5) 678 | -10/Mines | Entered Materials 679 | -9/Materials | Core integrity fell below 50% 679 | -9/Materials | Core integrity fell below 20% 680 | -9/Materials | Reached level 3 682 | -9/Materials | Self-destructed Last Messages --------------- 00604_ U-05 Engineer builds a Wall. 00605_ as-15046 sneak attacks. 00605_ K-01 Serf destroyed. 00607_ A stash of uninstalled traps is collected here! 00608_ U-05 Engineer builds a Wall. 00608_ Acquired derelict log, extracted data. World map updated: -10/Materials. 00636_ G-47 Trooper heat spikes uncontrollably. 00637_ G-47 Trooper overheating. 00641_ K-01 Serf collects debris. 00642_ G-47 Trooper shuts down. 00644_ Attempting to rewire G-47 Trooper. 00654_ G-47 Trooper rewired. 00661_ Trooper 1a destroyed. 00667_ G-34 Mercenary destroyed. 00670_ Used Protomatter to restore core integrity (+9, depleted) 00675_ EXIT=FOUND: MATERIALS LOCATION=MATERIALS GOAL=ESCAPE 00680_ Reached level 3. Map ----- +----------------------------------------------------+ | ????????????????????????????????? | | ????????????????????????????????? | | ????????????????????????????????? | | ????????????????????????????????? | | ????????????????????????????????? | | ????????????????????????????????? | | ????????????????????????????????? | | ????????????????????????????????? | | ????????????????????????????????? | | ????????????????????????????????? | | ????????????????????????????????? | | ????????????????????????????????? | | ????????????????????????????????? | | ????????????????????????????????? | | ????????????????????????????????? | | ????????????????????????????????? | | ????????????????????########????? | | ????????????????????# [ #????? | | ????????????????????# #????? | | ????????????????????#!!! #????? | | ????????????????????#!!! #????? | | ????????????????????#!!! #????? | | ????????????????????# #????? | | ?????????????# #######+####???? | | ?????????????# #???? | | ?????????????# @ #???? | | ?????????????# #???? | | ?????????????######## #####???? | | ????????????????????# #???????? | | ????????????????????# #???????? | | ????????????????????# #???????? | | ????????????????????# #???????? | | ????????????????????# #???????? | | ????????????????????# ????????? | | ???????????????????? ????????? | | ???????????????????? ????????? | | ??????????????????? ????????? | | ??????????????????? ????????? | | ???????????????????# ????????? | | ?????????????????????###????????? | | ????????????????????????????????? | | ????????????????????????????????? | | ????????????????????????????????? | | ????????????????????????????????? | | ????????????????????????????????? | | ????????????????????????????????? | | ????????????????????????????????? | | ????????????????????????????????? | | ????????????????????????????????? | | ????????????????????????????????? | +----------------------------------------------------+ Best States ------------- Heat Dissipation 25 Energy Generation 10 Energy Capacity 250 Matter Stores 300 Matter Capacity 300 Sight Range 16 Terrain Scan Density 10 Additional Mass Support 6 Resistance: KI 10 Resistance: TH 10 Resistance: EX 10 Evasion (%) 62 Offensive Hacking 10 Defensive Hacking 5 Item Schematics ----------------- None Robot Schematics ------------------ None Fabricated ------------ Nothing Alien Tech Used ----------------- None Achievements -------------- None Challenges ------------ None RPGLIKE | -11 -10 -10 -9 --------- Run | Scr Mat Min Mat Levels Raised 2 | . . 1 1 XP Earned 6745 | 3000 1420 825 1500 XP Spent 4500 | 2850 . 1650 . Upgrades 16 | 9 . 7 . Propulsion Slot 1 | 1 . . . Utility Slot 1 | 1 . . . Weapon Slot 1 | 1 . . . Energy Generation 1 | . . 1 . Mass Support 1 | 1 . . . Inventory Capacity 1 | 1 . . . Melee Accuracy 1 | 1 . . . Hack Attack % 2 | 2 . . . Hack Defense % 1 | 1 . . . KI Resistance % 2 | . . 2 . TH Resistance % 2 | . . 2 . EX Resistance % 2 | . . 2 . Protomatter Created 168 | . 168 . . Integrity Restored 537 | . 504 33 . Core 537 | . 504 33 . Protomatter Decayed 46 | . . 46 . Game ------ Seed LayeredCannonComputer Manual? 0 Play Time 00:13:38 Cumulative 94.2 hours Start 2021.12.08 @ 02:14:07 End 2021.12.08 @ 02:28:02 Sessions 1 Manual Loads 0 Difficulty Rogue Special Mode Winter2019/RPGLIKE Game No. 134 Rogue 134 Adventurer 0 Explorer 0 Win Type - Total 1 Types 1/0/0/0/0/0/0/0/0 Lore% 43 Gallery% 55 Achievement% 44 Wizard Run 0 Options --------- ASCII 0 Keyboard 0 Movement Mouse Keybinds 0 Fullscreen 2 Font 18/X11 Map View 76x50 Tactical HUD 1 Map Filters NONE Filters NONE Steam 1 RUN: 42368a83-5b1e-4172-bf13-e815f4d6be28